bitfinex/quotes_BTCUSD_20250102
["timestamp","ask_amount","ask_price","bid_price","bid_amount"]
[1735795267318,0.0002,95769.0,95768.0,0.61448632]
[1735795267545,0.0002,95769.0,95768.0,0.62348632]
[1735795267867,0.0002,95769.0,95768.0,0.52348632]
[1735795268066,0.00029269,95769.0,95768.0,0.52348632]
[1735795270232,0.00029269,95769.0,95768.0,0.62348632]
[1735795270901,0.00029269,95769.0,95768.0,0.52348632]
[1735795277436,0.00029269,95769.0,95768.0,0.42348632]
[1735795277777,0.00029269,95769.0,95768.0,0.12098632]
[1735795277984,0.00029269,95769.0,95768.0,0.14398632]
[1735795279047,0.00029269,95769.0,95768.0,0.13598632]
[1735795279372,0.00029269,95769.0,95768.0,0.12998632]
[1735795279581,0.00029269,95769.0,95768.0,0.13898632]
[1735795279776,0.00029269,95769.0,95768.0,0.10398632]
[1735795279987,0.00029269,95769.0,95768.0,0.11307162]
[1735795280289,0.00046329,95769.0,95768.0,0.11707162]
[1735795280735,0.00046329,95769.0,95768.0,0.11307162]
[1735795280961,0.00046329,95769.0,95768.0,0.10807162]
[1735795281080,0.00046329,95769.0,95768.0,0.11707162]
[1735795282187,0.00046329,95769.0,95768.0,0.11307162]
[1735795282391,0.00046329,95769.0,95768.0,0.10807162]
[1735795282701,0.00046329,95769.0,95768.0,0.11707162]
[1735795282857,0.00046329,95769.0,95768.0,0.10407162]
[1735795283251,0.00046329,95769.0,95768.0,0.11707162]
[1735795283660,0.00046329,95769.0,95768.0,0.11307162]
[1735795283865,0.00046329,95769.0,95768.0,0.10407162]
[1735795284062,0.00046329,95769.0,95768.0,0.10507162]
[1735795284270,0.00046329,95769.0,95768.0,0.11107162]
[1735795285737,0.01682646,95769.0,95768.0,0.11107162]
[1735795285944,0.00046329,95769.0,95768.0,0.11107162]
[1735795297797,0.00046329,95769.0,95768.0,0.11187872]
[1735795298640,0.00046329,95769.0,95768.0,0.11211569]
[1735795300357,0.00046329,95769.0,95768.0,0.11107162]
[1735795300976,0.28459829,95769.0,95768.0,0.0070853]
[1735795301164,0.33209829,95769.0,95768.0,0.0070853]
[1735795301812,0.33209829,95769.0,95768.0,0.0060853]
[1735795302085,0.33209829,95769.0,95768.0,0.0010853]
[1735795302428,0.33209829,95769.0,95768.0,0.0060853]
[1735795302625,0.33209829,95769.0,95768.0,0.0050853]
[1735795302829,0.33209829,95769.0,95768.0,0.0060853]
[1735795307584,0.12326329,95769.0,95768.0,0.0060853]
[1735795307943,0.00046329,95769.0,95768.0,0.0060853]
[1735795311045,0.0168279,95769.0,95768.0,0.0060853]
[1735795316118,0.00046329,95769.0,95768.0,0.0060853]
[1735795320157,0.15929729,95770.0,95768.0,0.0060853]
[1735795321192,0.25317003,95770.0,95768.0,0.0050853]
[1735795321639,0.25317003,95770.0,95768.0,0.0060853]
[1735795321876,0.25317003,95770.0,95768.0,0.0010853]
[1735795322079,0.09387274,95769.0,95768.0,0.0050853]
[1735795322929,0.3001064,95770.0,95768.0,0.0050853]
[1735795323338,0.3001064,95770.0,95768.0,0.0040853]
[1735795323538,0.3001064,95770.0,95768.0,8.53e-05]
[1735795323775,0.3001064,95770.0,95768.0,0.0010853]
[1735795324186,0.34704277,95770.0,95768.0,8.53e-05]
[1735795324338,0.34704277,95770.0,95768.0,0.0040853]
[1735795326450,0.18774548,95769.0,95768.0,0.0040853]
[1735795327093,0.23471856,95771.0,95768.0,0.0040853]
[1735795327328,0.23466434,95771.0,95768.0,0.0040853]
[1735795327554,0.0001706,95770.0,95768.0,0.0040853]
[1735795327725,0.0001706,95770.0,95768.0,0.0010853]
[1735795327935,0.0001706,95770.0,95768.0,0.0050853]
[1735795328271,0.18838809,95770.0,95768.0,8.53e-05]
[1735795328638,0.18838809,95770.0,95768.0,0.0030853]
[1735795329995,0.18838809,95770.0,95768.0,8.53e-05]
[1735795330195,0.18821749,95769.0,95768.0,0.0040853]
[1735795330535,0.18821749,95769.0,95768.0,8.53e-05]
[1735795330738,0.18821749,95769.0,95768.0,0.0010853]
[1735795331036,0.18821749,95769.0,95768.0,0.0060853]
[1735795331236,0.18821749,95769.0,95768.0,8.53e-05]
[1735795331441,0.18821749,95769.0,95768.0,0.0050853]
[1735795331662,0.18821749,95769.0,95768.0,0.0060853]
[1735795332078,0.18821749,95769.0,95768.0,0.11007162]
[1735795332252,0.18821749,95769.0,95768.0,0.19267162]
[1735795332475,0.18821749,95769.0,95768.0,0.24087162]
[1735795333201,0.0001706,95770.0,95769.0,0.208835]
[1735795333378,0.0001706,95770.0,95769.0,0.31282132]
[1735795334546,0.0001706,95770.0,95769.0,0.31682132]
[1735795334769,0.0001706,95770.0,95769.0,0.32582132]
[1735795344553,0.0001706,95770.0,95769.0,0.34882132]
[1735795345630,0.0001706,95770.0,95769.0,0.32582132]
[1735795350207,0.0001706,95770.0,95769.0,0.32590662]
[1735795354745,0.01653284,95770.0,95769.0,0.32590662]
[1735795355041,0.0001706,95770.0,95769.0,0.32590662]
[1735795355987,0.0001706,95770.0,95769.0,0.11707162]
[1735795356194,0.0781706,95770.0,95769.0,0.0130853]
[1735795356393,0.1274706,95770.0,95769.0,0.0130853]
[1735795357012,0.1274706,95770.0,95769.0,8.53e-05]
[1735795357232,0.1274706,95770.0,95769.0,0.0010853]
[1735795357431,0.1274706,95770.0,95769.0,0.0060853]
[1735795358275,0.31568809,95770.0,95769.0,0.0060853]
[1735795361209,0.1274706,95770.0,95769.0,0.0060853]
[1735795362018,0.14383526,95770.0,95769.0,0.0060853]
[1735795362223,0.1274706,95770.0,95769.0,0.0060853]
[1735795370809,0.0494706,95770.0,95769.0,0.0060853]
[1735795371279,0.0001706,95770.0,95769.0,0.0060853]
[1735795371479,0.0001706,95770.0,95769.0,0.11007162]
[1735795372103,0.09421969,95770.0,95769.0,0.11007162]
[1735795372967,0.0001706,95770.0,95769.0,0.11007162]
[1735795376830,0.0001706,95770.0,95769.0,0.10407162]
[1735795377020,0.0001706,95770.0,95769.0,0.10907162]
[1735795377270,0.0001706,95770.0,95769.0,0.10407162]
[1735795377749,0.0001706,95770.0,95769.0,0.13607162]
[1735795377997,0.0001706,95770.0,95769.0,0.26367162]
[1735795378612,0.0001706,95770.0,95769.0,0.26467162]
[1735795379216,0.0001706,95770.0,95769.0,0.26367162]
[1735795379522,0.0001706,95770.0,95769.0,0.26767162]
[1735795379766,0.0001706,95770.0,95769.0,0.41767162]
[1735795381512,0.0001706,95770.0,95769.0,0.41367162]
[1735795381915,0.0001706,95770.0,95769.0,0.41767162]
[1735795382455,0.0001706,95770.0,95769.0,0.41367162]
[1735795382630,0.0001706,95770.0,95769.0,0.40967162]
[1735795382840,0.0001706,95770.0,95769.0,0.41867162]
[1735795384669,2e-07,95771.0,95770.0,1.026333]
[1735795384828,2e-07,95771.0,95770.0,1.35791932]
[1735795385239,0.0001706,95786.0,95785.0,0.5864]
[1735795385486,0.0001706,95786.0,95785.0,0.71338632]
[1735795385984,6e-07,95786.0,95785.0,0.81338632]
[1735795386363,0.00058076,95805.0,95804.0,0.458759]
[1735795386565,0.00107386,95805.0,95804.0,0.66374532]
[1735795386763,0.00107386,95805.0,95804.0,0.71334532]
[1735795387005,0.0004931,95805.0,95804.0,0.71334532]
[1735795388957,0.0004931,95805.0,95804.0,0.72234532]
[1735795389156,0.0004931,95805.0,95804.0,0.71334532]
[1735795389396,0.00043869,95805.0,95804.0,0.71334532]
[1735795389575,0.00043869,95805.0,95804.0,0.72934532]
[1735795390136,0.00043869,95805.0,95804.0,0.73134532]
[1735795390541,0.00043869,95805.0,95804.0,0.73934532]
[1735795395363,0.00043869,95805.0,95804.0,0.74958504]
[1735795396357,0.0833,95841.0,95805.0,0.481757]
[1735795396514,0.00031827,95808.0,95807.0,0.27698632]
[1735795398362,0.00031827,95808.0,95807.0,0.45568632]
[1735795398802,0.00031827,95808.0,95807.0,0.56468632]
[1735795399460,0.00031827,95808.0,95807.0,0.55568632]
[1735795399665,0.00031827,95808.0,95807.0,0.56368632]
[1735795399891,0.00031827,95808.0,95807.0,0.57268632]
[1735795400291,0.00031827,95808.0,95807.0,0.47268632]
[1735795400589,0.00031827,95808.0,95807.0,1.01718632]
[1735795402287,0.00031827,95808.0,95807.0,1.11718632]
[1735795404886,0.00058076,95842.0,95808.0,0.58175]
[1735795405041,0.00024924,95809.0,95808.0,0.68573632]
[1735795406177,0.00024924,95809.0,95808.0,0.69373632]
[1735795406381,0.00024924,95809.0,95808.0,0.70273632]
[1735795406733,0.00024924,95809.0,95808.0,1.24723632]
[1735795407232,2.4e-07,95809.0,95808.0,1.24723632]
[1735795408580,2.4e-07,95809.0,95808.0,1.35743632]
[1735795408732,2.4e-07,95809.0,95808.0,1.24723632]
[1735795408940,2.4e-07,95809.0,95808.0,1.25095288]
[1735795409559,2.4e-07,95809.0,95808.0,1.26922628]
[1735795411018,8.554e-05,95809.0,95808.0,1.26922628]
[1735795411585,4.554e-05,95809.0,95808.0,1.26922628]
[1735795412612,4.554e-05,95809.0,95808.0,1.27703508]
[1735795415212,4.554e-05,95809.0,95808.0,1.37056473]
[1735795415437,0.08405116,95845.0,95814.0,0.1]
[1735795415641,0.08351967,95845.0,95844.0,0.208672]
[1735795415848,0.08351967,95845.0,95844.0,0.31265832]
[1735795418028,0.08351967,95845.0,95844.0,0.32065832]
[1735795418339,0.07851967,95845.0,95844.0,0.32065832]
[1735795418533,0.07851967,95845.0,95844.0,0.32265832]
[1735795419903,0.07846559,95845.0,95844.0,0.32265832]
[1735795422163,0.07846559,95845.0,95844.0,0.11398632]
[1735795422764,0.07846559,95845.0,95844.0,0.01]
[1735795423526,0.07855089,95845.0,95844.0,0.01]
[1735795425188,0.07849681,95845.0,95844.0,0.01]
[1735795430627,0.37769681,95845.0,95844.0,0.01]
[1735795430833,0.337015,95824.0,95823.0,0.09336386]
[1735795431032,0.337015,95824.0,95812.0,0.208741]
[1735795431033,0.257915,95824.0,95822.0,0.14029447]
[1735795431211,0.0791,95823.0,95822.0,0.14029447]
[1735795432234,0.0791,95823.0,95812.0,0.417482]
[1735795432464,0.0791,95823.0,95822.0,0.003]
[1735795432660,0.0791,95823.0,95822.0,0.009]
[1735795432836,0.0791,95823.0,95822.0,0.003]
[1735795434069,0.0791,95823.0,95822.0,0.005]
[1735795434262,0.0791,95823.0,95822.0,0.006]
[1735795434488,0.0791,95823.0,95822.0,0.001]
[1735795434706,0.0791,95823.0,95822.0,0.005]
[1735795434884,0.0791,95823.0,95822.0,0.004]
[1735795435089,0.0791,95823.0,95822.0,0.005]
[1735795435289,0.0791,95823.0,95822.0,0.0051706]
[1735795443193,0.07793686,95823.0,95822.0,0.0051706]
[1735795443709,0.07793686,95823.0,95822.0,0.0011706]
[1735795443919,0.07793686,95823.0,95822.0,0.0051706]
[1735795444211,0.07793686,95823.0,95822.0,0.0041706]
[1735795444414,0.07793686,95823.0,95822.0,0.0051706]
[1735795445891,0.0455,95832.0,95822.0,0.10915692]
[1735795446090,0.0763,95831.0,95823.0,0.31270432]
[1735795447775,0.0763,95831.0,95823.0,0.31370432]
[1735795448985,0.0773,95831.0,95823.0,0.31370432]
[1735795449989,0.0773,95831.0,95823.0,0.10498632]
[1735795450674,0.001,95831.0,95823.0,0.10498632]
[1735795451052,0.001,95831.0,95824.0,0.208715]
[1735795451256,0.001,95831.0,95828.0,0.208705]
[1735795451479,0.01635339,95835.0,95829.0,0.10398632]
[1735795451892,0.001,95831.0,95829.0,0.10398632]
[1735795452290,0.01635339,95835.0,95829.0,0.10398632]
[1735795453977,0.01635339,95835.0,95829.0,0.10698632]
[1735795454171,0.01635339,95835.0,95829.0,0.10798632]
[1735795454678,0.01635339,95835.0,95829.0,0.10698632]
[1735795455459,0.01635339,95835.0,95830.0,0.208702]
[1735795455663,0.01635339,95835.0,95831.0,0.10398632]
[1735795457222,0.01635339,95835.0,95831.0,0.10698632]
[1735795457442,0.01635339,95835.0,95831.0,0.10398632]
[1735795457859,0.01635339,95835.0,95831.0,0.10698632]
[1735795458062,0.01635339,95835.0,95831.0,0.10398632]
[1735795458284,0.01635339,95835.0,95831.0,0.10498632]
[1735795459408,0.01635339,95835.0,95831.0,0.10898632]
[1735795462869,0.01635339,95835.0,95832.0,0.208698]
[1735795463185,8.53e-05,95844.0,95834.0,0.208694]
[1735795463400,8.53e-05,95844.0,95835.0,0.10398632]
[1735795464978,0.0010853,95844.0,95835.0,0.10398632]
[1735795466421,0.01635115,95842.0,95835.0,0.10398632]
[1735795466626,0.0010853,95844.0,95835.0,0.10398632]
[1735795466832,8.53e-05,95844.0,95835.0,0.10498632]
[1735795466973,0.0010853,95844.0,95835.0,0.10498632]
[1735795467326,0.208685,95838.0,95835.0,0.10498632]
[1735795467537,0.0831,95837.0,95835.0,0.001]
[1735795468691,0.0831,95837.0,95835.0,0.002]
[1735795469011,0.0831,95837.0,95835.0,0.001]
[1735795469215,0.0831,95837.0,95835.0,0.006]
[1735795469512,0.09945234,95837.0,95835.0,0.006]
[1735795469716,0.208689,95836.0,95835.0,0.006]
[1735795469939,0.254189,95836.0,95835.0,0.006]
[1735795470429,0.337289,95836.0,95835.0,0.006]
[1735795470668,0.337289,95836.0,95835.0,0.001]
[1735795470901,0.337289,95836.0,95835.0,0.003]
[1735795471144,0.337289,95836.0,95835.0,0.002]
[1735795472106,0.337289,95836.0,95823.0,0.0001706]
[1735795472305,0.208713,95826.0,95823.0,0.0001706]
[1735795473496,0.208715,95824.0,95823.0,0.0001706]
[1735795473698,0.208715,95824.0,95823.0,0.0031706]
[1735795473897,0.0831,95825.0,95823.0,0.0031706]
[1735795474517,0.208715,95824.0,95823.0,0.0031706]
[1735795475381,0.208715,95824.0,95823.0,0.0011706]
[1735795475719,0.22507043,95824.0,95823.0,0.0011706]
[1735795475921,0.22507043,95824.0,95823.0,0.0051706]
[1735795476603,0.27377043,95824.0,95823.0,0.0041706]
[1735795476804,0.56397244,95824.0,95823.0,0.0041706]
[1735795477010,1.57501776,95824.0,95823.0,0.0041706]
[1735795477245,2.26888376,95824.0,95823.0,0.0041706]
[1735795477560,1.84184776,95824.0,95823.0,0.0001706]
[1735795478005,2.07810647,95824.0,95823.0,0.0001706]
[1735795478617,2.07710647,95824.0,95823.0,0.0001706]
[1735795478988,2.10010647,95824.0,95823.0,0.0021706]
[1735795479329,0.681148,95809.0,95804.0,0.0001706]
[1735795479536,0.78513432,95809.0,95804.0,0.0001706]
[1735795479938,0.80813432,95809.0,95804.0,0.0001706]
[1735795480255,0.82449367,95809.0,95804.0,0.0001706]
[1735795480467,2.35592667,95809.0,95804.0,0.0001706]
[1735795480674,2.36348367,95809.0,95808.0,0.0011706]
[1735795481075,1.60813967,95809.0,95808.0,0.0011706]
[1735795481426,1.71712599,95809.0,95808.0,0.0011706]
[1735795481840,1.71212599,95809.0,95808.0,0.0011706]
[1735795482387,1.71712599,95809.0,95808.0,0.0011706]
[1735795483243,1.70076664,95809.0,95808.0,0.0011706]
[1735795483511,0.92412064,95809.0,95808.0,0.0011706]
[1735795483711,1.70117064,95809.0,95808.0,0.0011706]
[1735795483857,1.52636864,95809.0,95808.0,0.0011706]
[1735795485612,0.908372,95809.0,95808.0,0.0011706]
[1735795486534,0.92473257,95809.0,95808.0,0.0011706]
[1735795487255,1.02871889,95809.0,95808.0,0.0011706]
[1735795488971,1.01235832,95809.0,95808.0,0.0011706]
[1735795489858,1.01323722,95809.0,95808.0,0.0011706]
[1735795490179,1.11722354,95809.0,95808.0,0.0011706]
[1735795491976,1.01323722,95809.0,95808.0,0.0011706]
[1735795492341,1.02959787,95809.0,95808.0,0.0011706]
[1735795492542,1.0298909,95809.0,95808.0,0.0011706]
[1735795495326,1.01353025,95809.0,95808.0,0.0011706]
[1735795495523,0.1,95801.0,95800.0,3.49105029]
[1735795495727,0.701511,95801.0,95800.0,3.49105029]
[1735795495931,0.458766,95801.0,95800.0,3.49105029]
[1735795496611,0.464766,95801.0,95800.0,3.49205029]
[1735795496802,0.467766,95801.0,95800.0,3.49205029]
[1735795497003,0.762954,95801.0,95800.0,3.49205029]
[1735795498384,0.77931487,95801.0,95800.0,3.49205029]
[1735795500159,0.48412687,95801.0,95800.0,3.49205029]
[1735795500359,0.61557487,95801.0,95800.0,3.49205029]
[1735795500741,0.467766,95801.0,95800.0,3.49205029]
[1735795501290,0.613384,95801.0,95800.0,3.49205029]
[1735795502470,0.467766,95801.0,95800.0,3.49205029]
[1735795505322,0.48412676,95801.0,95800.0,3.49205029]
[1735795506835,1.08168808,95801.0,95800.0,3.49205029]
[1735795507258,1.08168808,95801.0,95800.0,3.49222089]
[1735795508418,0.009,95801.0,95800.0,3.67350721]
[1735795508670,0.009,95801.0,95800.0,3.72130721]
[1735795509411,8.53e-05,95804.0,95801.0,0.567532]
[1735795509598,8.53e-05,95804.0,95803.0,0.286061]
[1735795509796,8.53e-05,95804.0,95803.0,0.39004732]
[1735795512754,0.0010853,95804.0,95803.0,0.40504732]
[1735795513157,8.53e-05,95804.0,95803.0,0.39604732]
[1735795513371,0.0010853,95804.0,95803.0,0.39904732]
[1735795513573,0.0010853,95804.0,95803.0,0.39604732]
[1735795513968,0.0020853,95804.0,95803.0,0.40504732]
[1735795514176,0.0010853,95804.0,95803.0,0.39004732]
[1735795514457,0.0010853,95804.0,95803.0,0.39704732]
[1735795514832,0.0010853,95804.0,95803.0,0.40604732]
[1735795515685,0.0010853,95804.0,95803.0,0.39904732]
[1735795515932,8.53e-05,95804.0,95803.0,0.40604732]
[1735795516097,8.53e-05,95804.0,95803.0,0.39704732]
[1735795516296,0.0010853,95804.0,95803.0,0.40604732]
[1735795517445,0.0010853,95804.0,95803.0,0.42904732]
[1735795517991,8.53e-05,95822.0,95803.0,0.57904732]
[1735795518194,8.53e-05,95822.0,95821.0,0.339022]
[1735795518479,8.53e-05,95822.0,95821.0,0.44300832]
[1735795518859,8.53e-05,95822.0,95821.0,0.59300832]
[1735795519074,8.53e-05,95822.0,95821.0,0.61600832]
[1735795520197,0.0010853,95822.0,95821.0,0.63300832]
[1735795533306,0.0010853,95822.0,95821.0,0.61000832]
[1735795534862,0.0010853,95822.0,95821.0,0.32970832]
[1735795535072,0.0010853,95822.0,95821.0,0.017]
[1735795535746,8.53e-05,95822.0,95821.0,0.008]
[1735795535963,8.53e-05,95822.0,95814.0,0.208737]
[1735795536104,8.53e-05,95822.0,95821.0,0.007]
[1735795536312,8.53e-05,95822.0,95821.0,0.009]
[1735795536711,8.53e-05,95822.0,95821.0,0.19388632]
[1735795537734,8.53e-05,95822.0,95821.0,0.19188632]
[1735795537945,8.53e-05,95822.0,95821.0,0.19388632]
[1735795538146,8.53e-05,95822.0,95821.0,0.22388632]
[1735795538873,8.53e-05,95822.0,95821.0,0.35788632]
[1735795539284,8.53e-05,95822.0,95821.0,0.37188632]
[1735795539642,8.53e-05,95822.0,95821.0,0.36288632]
[1735795539816,8.53e-05,95822.0,95821.0,0.37619337]
[1735795540024,8.53e-05,95822.0,95821.0,0.38519337]
[1735795540250,8.53e-05,95822.0,95821.0,0.48892111]
[1735795541189,8.53e-05,95822.0,95821.0,0.51621399]
[1735795541384,8.53e-05,95844.0,95835.0,0.208692]
[1735795541591,8.53e-05,95844.0,95835.0,0.31267832]
[1735795542615,8.53e-05,95844.0,95835.0,0.32167832]
[1735795542975,8.53e-05,95844.0,95835.0,0.32667832]
[1735795544090,0.00019843,95836.0,95835.0,0.32667832]
[1735795545872,0.00019843,95836.0,95835.0,0.40387832]
[1735795548899,0.00019843,95836.0,95835.0,0.32667832]
[1735795556034,0.00019843,95836.0,95835.0,0.40787832]
[1735795568124,0.00019843,95836.0,95835.0,0.58087832]
[1735795574503,0.00019843,95836.0,95835.0,0.49967832]
[1735795577858,0.00019843,95836.0,95835.0,0.32667832]
[1735795579744,0.0001706,95846.0,95843.0,0.417348]
[1735795579953,0.0001706,95867.0,95853.0,0.358652]
[1735795580214,0.0001706,95867.0,95853.0,0.66073832]
[1735795580384,0.0001706,95867.0,95862.0,0.208633]
[1735795580599,0.12460431,95863.0,95862.0,0.80581932]
[1735795580805,0.02028931,95863.0,95862.0,0.82414795]
[1735795581157,0.02028931,95863.0,95862.0,0.82787049]
[1735795581511,0.00011312,95863.0,95862.0,0.82787049]
[1735795581726,1.2e-07,95863.0,95862.0,0.82787049]
[1735795581935,1.2e-07,95863.0,95862.0,0.83687049]
[1735795582250,1.2e-07,95863.0,95862.0,1.17483883]
[1735795583011,1.2e-07,95863.0,95862.0,1.27156689]
[1735795583602,1.2e-07,95863.0,95862.0,1.16256689]
[1735795583775,1.2e-07,95863.0,95862.0,1.11713826]
[1735795583989,1.2e-07,95863.0,95862.0,0.55944186]
[1735795584181,0.07084132,95881.0,95880.0,0.208594]
[1735795584435,0.07084132,95881.0,95872.0,0.20861]
[1735795584436,0.11994132,95881.0,95872.0,0.20861]
[1735795584605,0.11994132,95881.0,95873.0,0.10398632]
[1735795585575,0.11994132,95881.0,95874.0,0.208607]
[1735795585789,0.11994132,95881.0,95874.0,0.31259332]
[1735795586543,0.11994132,95881.0,95880.0,0.002]
[1735795586970,0.11994132,95881.0,95874.0,0.31259332]
[1735795587269,0.11994132,95881.0,95874.0,0.52320032]
[1735795587496,0.11994132,95881.0,95874.0,0.52920032]
[1735795587901,8.53e-05,95900.0,95881.0,0.1]
[1735795588106,0.00014776,95892.0,95891.0,0.15]
[1735795588279,0.00014776,95892.0,95891.0,0.27698632]
[1735795589433,0.00014776,95892.0,95891.0,0.12698632]
[1735795590471,0.00014776,95892.0,95891.0,0.13398632]
[1735795590628,0.00014776,95892.0,95891.0,0.14298632]
[1735795590828,0.00014776,95892.0,95891.0,0.13598632]
[1735795591329,0.00014776,95892.0,95891.0,0.14298632]
[1735795592602,0.00023306,95892.0,95891.0,0.14298632]
[1735795595945,0.00023306,95892.0,95891.0,0.12698632]
[1735795596259,0.00023306,95892.0,95891.0,0.13398632]
[1735795596441,0.00023306,95892.0,95891.0,0.14298632]
[1735795598969,0.00023306,95892.0,95891.0,0.14716432]
[1735795600125,0.00023306,95892.0,95891.0,0.29716432]
[1735795608636,0.00023306,95892.0,95891.0,0.37596432]
[1735795610042,8.53e-05,95900.0,95899.0,0.231552]
[1735795610256,8.53e-05,95900.0,95899.0,0.33553832]
[1735795611403,8.53e-05,95900.0,95899.0,0.34453832]
[1735795611817,8.53e-05,95900.0,95899.0,0.34953832]
[1735795612452,8.53e-05,95900.0,95899.0,0.34453832]
[1735795612639,8.53e-05,95900.0,95899.0,0.35053832]
[1735795613122,8.53e-05,95900.0,95899.0,0.34453832]
[1735795613377,9e-07,95904.0,95903.0,0.1]
[1735795613583,9e-07,95904.0,95903.0,0.53278632]
[1735795613793,9e-07,95904.0,95903.0,0.55950112]
[1735795613999,9e-07,95904.0,95903.0,0.57776617]
[1735795614799,9e-07,95904.0,95903.0,1.11007787]
[1735795614996,8.53e-05,95918.0,95913.0,0.15]
[1735795615201,0.00057774,95918.0,95917.0,0.61159932]
[1735795615892,0.00057774,95918.0,95917.0,0.62986437]
[1735795616024,0.00057774,95918.0,95917.0,0.58627917]
[1735795616448,0.00057774,95918.0,95917.0,0.60427917]
[1735795618058,0.00057774,95918.0,95917.0,0.50247917]
[1735795618596,0.00057774,95918.0,95917.0,0.49876437]
[1735795618738,0.00057774,95918.0,95917.0,0.48049932]
[1735795618939,0.00057774,95918.0,95917.0,0.50349932]
[1735795619140,0.00057774,95918.0,95917.0,0.48549932]
[1735795619344,0.06896304,95936.0,95933.0,0.208477]
[1735795619658,0.06911071,95936.0,95934.0,0.10398632]
[1735795620364,0.01648274,95936.0,95935.0,0.023]
[1735795620564,0.01648274,95936.0,95935.0,0.12698632]
[1735795622597,0.01648274,95936.0,95935.0,0.13098632]
[1735795622804,0.01648274,95936.0,95935.0,0.13998632]
[1735795625697,9.301e-05,95936.0,95935.0,0.13998632]
[1735795627729,9.301e-05,95936.0,95935.0,0.14015672]
[1735795628147,0.00017821,95936.0,95935.0,0.14015672]
[1735795629446,0.00017821,95936.0,95935.0,0.29015672]
[1735795630872,0.00017821,95936.0,95935.0,0.77544928]
[1735795631229,0.0143877,95950.0,95949.0,0.208444]
[1735795631442,0.0143877,95950.0,95949.0,0.33543032]
[1735795632454,0.0926877,95950.0,95949.0,0.009]
[1735795632677,0.1382877,95950.0,95949.0,0.009]
[1735795632953,0.1382877,95950.0,95949.0,0.013]
[1735795633254,0.1382877,95950.0,95949.0,0.004]
[1735795633456,0.1382877,95950.0,95949.0,0.013]
[1735795633663,0.1382877,95950.0,95949.0,0.004]
[1735795634407,0.1382877,95950.0,95942.0,0.208458]
[1735795634624,0.1382877,95950.0,95943.0,0.10398632]
[1735795634773,0.1382877,95950.0,95949.0,0.004]
[1735795635333,0.1382877,95950.0,95949.0,0.005]
[1735795635465,0.1382877,95950.0,95949.0,0.006]
[1735795635701,0.1382877,95950.0,95949.0,0.001]
[1735795636583,0.1382877,95950.0,95949.0,0.006]
[1735795637436,0.1382877,95950.0,95949.0,0.005]
[1735795637612,0.1382877,95950.0,95949.0,0.006]
[1735795638023,0.1382877,95950.0,95949.0,0.005]
[1735795638223,0.1382877,95950.0,95943.0,0.10398632]
[1735795638406,0.1382877,95950.0,95949.0,0.001]
[1735795638604,0.1382877,95950.0,95949.0,0.006]
[1735795638856,0.1382877,95950.0,95949.0,0.001]
[1735795639053,0.1382877,95950.0,95943.0,0.10398632]
[1735795639394,0.1383729,95950.0,95943.0,0.10398632]
[1735795639860,0.1383729,95950.0,95949.0,0.005]
[1735795640029,0.416888,95949.0,95935.0,0.0001704]
[1735795640229,0.208454,95945.0,95935.0,0.10415672]
[1735795640432,0.208462,95941.0,95935.0,0.10415672]
[1735795641033,0.208444,95949.0,95935.0,0.0001704]
[1735795641238,0.1383729,95950.0,95935.0,0.0001704]
[1735795641239,0.208457,95943.0,95935.0,0.0001704]
[1735795641418,0.208468,95938.0,95935.0,0.0011704]
[1735795641608,0.0783,95936.0,95935.0,0.0011704]
[1735795641807,0.286772,95936.0,95935.0,0.0011704]
[1735795642031,0.286772,95936.0,95935.0,0.0001704]
[1735795642255,0.286772,95936.0,95935.0,0.0011704]
[1735795643400,0.286772,95936.0,95935.0,0.0021704]
[1735795643630,0.286772,95936.0,95935.0,0.0011704]
[1735795644812,0.208472,95936.0,95935.0,0.0011704]
[1735795645019,0.0144729,95950.0,95946.0,0.20845]
[1735795645267,0.0144729,95950.0,95948.0,0.208446]
[1735795645466,0.0144729,95950.0,95949.0,0.10398632]
[1735795647009,0.0144729,95950.0,95949.0,0.11298632]
[1735795648083,0.03080504,95950.0,95949.0,0.11698632]
[1735795648315,0.0144729,95950.0,95949.0,0.10798632]
[1735795648691,0.0144729,95950.0,95949.0,0.11698632]
[1735795649984,0.0144729,95950.0,95949.0,0.13998632]
[1735795650811,0.0144729,95950.0,95949.0,0.13598632]
[1735795651283,0.0144729,95950.0,95949.0,0.13998632]
[1735795651445,0.0144729,95950.0,95949.0,0.13098632]
[1735795651640,0.0144729,95950.0,95949.0,0.13598632]
[1735795651908,0.0144729,95950.0,95949.0,0.13998632]
[1735795654418,0.0144729,95950.0,95949.0,0.11698632]
[1735795656012,0.0144729,95950.0,95949.0,0.013]
[1735795656013,0.0610729,95950.0,95949.0,0.013]
[1735795656318,0.2695139,95950.0,95949.0,0.013]
[1735795656904,0.2695139,95950.0,95949.0,0.009]
[1735795657110,0.0610729,95950.0,95949.0,0.009]
[1735795657288,0.0610729,95950.0,95949.0,0.011]
[1735795657489,0.0610729,95950.0,95949.0,0.002]
[1735795657900,0.0144729,95950.0,95949.0,0.009]
[1735795659676,0.0144729,95950.0,95949.0,0.11298632]
[1735795666869,0.0144729,95950.0,95949.0,0.13598632]
[1735795682690,0.0965729,95950.0,95949.0,0.009]
[1735795682952,0.1463729,95950.0,95949.0,0.009]
[1735795684191,0.0144729,95950.0,95949.0,0.13598632]
[1735795687192,0.0144729,95950.0,95949.0,0.009]
[1735795687394,0.0965729,95950.0,95949.0,0.009]
[1735795691367,0.0144729,95950.0,95949.0,0.009]
[1735795697056,0.1615729,95950.0,95949.0,0.009]
[1735795697209,0.67857641,95950.0,95949.0,0.009]
[1735795697419,1.07704741,95950.0,95949.0,0.009]
[1735795697852,1.03401641,95950.0,95949.0,0.009]
[1735795698266,0.1,95937.0,95936.0,0.0001706]
[1735795698468,0.38957,95937.0,95936.0,0.0001706]
[1735795699029,0.208466,95939.0,95936.0,0.0001706]
[1735795699030,0.1,95939.0,95936.0,0.0001706]
[1735795699265,0.208467,95938.0,95936.0,0.0001706]
[1735795699785,0.1,95937.0,95936.0,0.0001706]
[1735795700688,0.102,95937.0,95936.0,0.0001706]
[1735795701192,0.104,95937.0,95936.0,0.0001706]
[1735795701952,0.105,95937.0,95936.0,0.0001706]
[1735795702938,0.005,95937.0,95936.0,0.0001706]
[1735795703077,0.105,95937.0,95936.0,0.0001706]
[1735795707310,0.005,95937.0,95936.0,0.0001706]
[1735795707526,0.105,95937.0,95936.0,0.0001706]
[1735795708843,0.2267,95937.0,95936.0,0.0001706]
[1735795709078,0.1267,95937.0,95936.0,0.0001706]
[1735795709407,0.005,95937.0,95936.0,0.0001706]
[1735795709942,0.001,95937.0,95936.0,0.0001706]
[1735795710162,0.003,95937.0,95936.0,0.0001706]
[1735795710785,0.002,95937.0,95936.0,0.0001706]
[1735795711661,0.003,95937.0,95936.0,0.0001706]